Workbook

Sheet DASHBOARD

Sheet Pivot
K1: Emp Status | L1: (All) | O1: Emp Status | P1: (All) | W1: Emp Status | X1: (All) | AA1: Emp Status | AB1: (All) | AE1: Emp Status | AF1: (All) | AI1: Emp Status | AJ1: (All)
E3: Count of Name | F3: Column Labels | K3: Row Labels | L3: Count of Name | O3: Row Labels | P3: Count of Name | Q3: Headcount % | S3: Row Labels | T3: Headcount % | W3: Row Labels | X3: Count of Name | Y3: Headcount % | AA3: Row Labels | AB3: Count of Name | AC3: Headcount % | AE3: Row Labels | AF3: Count of Name | AG3: Headcount % | AI3: Row Labels | AJ3: Count of Name
E4: Row Labels | F4: Attrition | G4: On-Board | H4: Transfer | I4: Grand Total | K4: Female | L4: 64 | O4: Contract | P4: 22 | Q4: 0.1286549708 | S4: Accounting | T4: 0.1052631579 | W4: Alejandra Mack | X4: 19 | Y4: 0.1111111111 | AA4: Contract | AB4: 23 | AC4: 0.134502924 | AE4: 5+ years | AF4: 42 | AG4: 0.2456140351 | AI4: Ryan Simmons | AJ4: 58
E5: 2020 | F5: 20 | G5: 23 | I5: 43 | K5: Male | L5: 107 | O5: Management | P5: 26 | Q5: 0.1520467836 | S5: Finance | T5: 0.08187134503 | W5: Darryl Leon | X5: 11 | Y5: 0.06432748538 | AA5: Permanent | AB5: 148 | AC5: 0.865497076 | AE5: 4+ years | AF5: 26 | AG5: 0.1520467836 | AI5: Janelle Wiley | AJ5: 41
E6: 2021 | F6: 12 | G6: 12 | H6: 1 | I6: 25 | K6: Grand Total | L6: 171 | O6: Professional | P6: 58 | Q6: 0.3391812865 | S6: HR | T6: 0.216374269 | W6: Geneva Hardy | X6: 7 | Y6: 0.04093567251 | AA6: Grand Total | AB6: 171 | AC6: 1 | AE6: 3+ years | AF6: 33 | AG6: 0.1929824561 | AI6: Roberta Moyer | AJ6: 24
E7: 2022 | F7: 10 | G7: 19 | H7: 4 | I7: 33 | O7: Trainees | P7: 65 | Q7: 0.3801169591 | S7: Legal | T7: 0.07602339181 | W7: Janelle Wiley | X7: 41 | Y7: 0.2397660819 | AE7: 2+ years | AF7: 34 | AG7: 0.1988304094 | AI7: Alejandra Mack | AJ7: 19
E8: 2023 | F8: 4 | G8: 30 | H8: 1 | I8: 35 | O8: Grand Total | P8: 171 | Q8: 1 | S8: Marketing | T8: 0.1111111111 | W8: Jefferson Perry | X8: 11 | Y8: 0.06432748538 | AE8: 1+ years | AF8: 26 | AG8: 0.1520467836 | AI8: Darryl Leon | AJ8: 11
E9: 2024 | G9: 25 | I9: 25 | S9: Operations | T9: 0.2748538012 | W9: Roberta Moyer | X9: 24 | Y9: 0.1403508772 | AE9: <1 year | AF9: 10 | AG9: 0.05847953216 | AI9: Jefferson Perry | AJ9: 11
E10: 2025 | F10: 1 | G10: 9 | I10: 10 | S10: Sales | T10: 0.134502924 | W10: Ryan Simmons | X10: 58 | Y10: 0.3391812865 | AE10: Grand Total | AF10: 171 | AG10: 1 | AI10: Geneva Hardy | AJ10: 7
E11: Grand Total | F11: 47 | G11: 118 | H11: 6 | I11: 171 | S11: Grand Total | T11: 1 | W11: Grand Total | X11: 171 | Y11: 1 | AI11: Grand Total | AJ11: 171
AA12: Emplyoment Status | AB12: Headcount | AC12: Headcount % | AI12: Reporting Manage Name | AJ12: Headcount
AA13: =AA4 -> Contract | AB13: =GETPIVOTDATA("Count of Name",$AA$3,"Emp Type",AA13) -> 23 | AC13: =AB13/$AB$15 -> 0.134502924 | AE13: Stability Year | AF13: Headcount | AG13: Headcount % | AI13: =AI4 -> Ryan Simmons | AJ13: =GETPIVOTDATA("Name",$AI$3,"Reporting Manager",AI13) -> 58
A14: KPI | B14: Value | E14: Year | F14: Attrition | G14: On-Board | H14: Transfer | I14: Headcount Growth | K14: Gender | L14: Headcount | M14: Headcount % | O14: Row Labels | P14: Count of Name | Q14: Headcount % | AA14: =AA5 -> Permanent | AB14: =GETPIVOTDATA("Count of Name",$AA$3,"Emp Type",AA14) -> 148 | AC14: =AB14/$AB$15 -> 0.865497076 | AE14: =AE4 -> 5+ years | AF14: =GETPIVOTDATA("Count of Name",$AE$3,"Stability",AE14) -> 42 | AG14: =AF14/$AF$20 -> 0.2456140351 | AI14: =AI5 -> Janelle Wiley | AJ14: =GETPIVOTDATA("Name",$AI$3,"Reporting Manager",AI14) -> 41
A15: Overall Headcount | B15: =GETPIVOTDATA("Name",$E$3) -> 171 | E15: 2020 | F15: =IFERROR(GETPIVOTDATA("Name",$E$3,"Emp Status","Attrition","Year",E15),0) -> 20 | G15: =IFERROR(GETPIVOTDATA("Name",$E$3,"Emp Status","On-Board","Year",E15),0) -> 23 | H15: =IFERROR(GETPIVOTDATA("Name",$E$3,"Emp Status","Transfer","Year",E15),0) -> 0 | I15: =G15 -> 23 | K15: Female | L15: =GETPIVOTDATA("Name",$K$3,"Category",K15) -> 64 | M15: =L15/L17 -> 0.3742690058 | O15: Contract | P15: =GETPIVOTDATA("Count of Name",$O$3,"Grade",O15) -> 22 | Q15: =P15/$P$19 -> 0.1286549708 | AA15: Total | AB15: =SUM(AB13:AB14) -> 171 | AC15: 1 | AE15: =AE5 -> 4+ years | AF15: =GETPIVOTDATA("Count of Name",$AE$3,"Stability",AE15) -> 26 | AG15: =AF15/$AF$20 -> 0.1520467836 | AI15: Roberta Moyer | AJ15: 24
A16: Active Headcount | B16: =G21 -> 118 | E16: 2021 | F16: 12 | G16: 12 | H16: 1 | I16: =I15+G16 -> 35 | K16: Male | L16: =GETPIVOTDATA("Name",$K$3,"Category",K16) -> 107 | M16: =L16/L17 -> 0.6257309942 | O16: Management | P16: =GETPIVOTDATA("Count of Name",$O$3,"Grade",O16) -> 26 | Q16: =P16/$P$19 -> 0.1520467836 | AE16: 3+ years | AF16: 33 | AG16: 0.1929824561 | AI16: Alejandra Mack | AJ16: 19
A17: Attrition | B17: =F21 -> 47 | E17: 2022 | F17: 10 | G17: 19 | H17: 4 | I17: =I16+G17 -> 54 | K17: Total | L17: =SUM(L15:L16) -> 171 | M17: =SUM(M15:M16) -> 1 | O17: Professional | P17: =GETPIVOTDATA("Count of Name",$O$3,"Grade",O17) -> 58 | Q17: =P17/$P$19 -> 0.3391812865 | AE17: 2+ years | AF17: 34 | AG17: 0.1988304094 | AI17: Darryl Leon | AJ17: 11
A18: Atrrition % | B18: =B17/B15 -> 0.2748538012 | E18: 2023 | F18: 4 | G18: 30 | H18: 1 | I18: =I17+G18 -> 84 | O18: Trainees | P18: =GETPIVOTDATA("Count of Name",$O$3,"Grade",O18) -> 65 | Q18: =P18/$P$19 -> 0.3801169591 | AE18: 1+ years | AF18: 26 | AG18: 0.1520467836 | AI18: Jefferson Perry | AJ18: 11
A19: Tranfers | B19: =H21 -> 6 | E19: 2024 | F19: 0 | G19: 25 | H19: 0 | I19: =I18+G19 -> 109 | O19: Total | P19: =SUM(P15:P18) -> 171 | Q19: =P19/$P$19 -> 1 | AE19: <1 year | AF19: 10 | AG19: 0.05847953216 | AI19: =AI10 -> Geneva Hardy | AJ19: 7
E20: 2025 | F20: 1 | G20: 9 | H20: 0 | I20: =I19+G20 -> 118 | AE20: Grand Total | AF20: =SUM(AF14:AF19) -> 171 | AG20: =AF20/$AF$20 -> 1
E21: Total | F21: =SUM(F15:F20) -> 47 | G21: =SUM(G15:G20) -> 118 | H21: =SUM(H15:H20) -> 6 | I21: =I20 -> 118

Sheet DATA
A1: Emp Status | B1: Movement | C1: Emp Id | D1: Name | E1: Date of Joining | F1: Data of Relieving | G1: Reporting Manager | H1: Emp Type | I1: Category | J1: Date of Birth | K1: Marital status | L1: Grade | M1: Department | N1: Total Experience | O1: Year | P1: Stability
A2: On-Board | B2: IJP | C2: CT18807 | D2: Adrian Odonnell | E2: 2020-04-29 | G2: Roberta Moyer | H2: Contract | I2: Male | J2: 2021-07-13 | K2: Single | L2: Contract | M2: Operations | N2: 0 | O2: =YEAR(Table2[[#This Row],[Date of Joining]]) -> 2020 | P2: =IF(DATEDIF(E2,TODAY(),"Y")>=5,"5+ years", IF(DATEDIF(E2,TODAY(),"Y")>=4,"4+ years", IF(DATEDIF(E2,TODAY(),"Y")>=3,"3+ years", IF(DATEDIF(E2,TODAY(),"Y")>=2,"2+ years", IF(DATEDIF(E2,TODAY(),"Y")>=1,"1+ years","<1 year"))))) -> 5+ years
A3: Attrition | C3: CT12674 | D3: Marina Velazquez | E3: 2020-09-01 | F3: 2020-12-18 | G3: Roberta Moyer | H3: Contract | I3: Male | J3: 2021-10-03 | K3: Married | L3: Trainees | M3: Accounting | N3: 6.5 | O3: =YEAR(Table2[[#This Row],[Date of Joining]]) -> 2020 | P3: 5+ years
A4: On-Board | C4: CT11735 | D4: Regina Schaefer | E4: 2021-01-01 | G4: Roberta Moyer | H4: Contract | I4: Male | J4: 2021-02-09 | K4: Single | L4: Contract | M4: Operations | N4: 4.8 | O4: =YEAR(Table2[[#This Row],[Date of Joining]]) -> 2021 | P4: 4+ years
A5: On-Board | C5: CT10131 | D5: Donna Sparks | E5: 2021-02-09 | G5: Roberta Moyer | H5: Contract | I5: Male | J5: 2021-03-14 | K5: Single | L5: Contract | M5: Legal | N5: 14 | O5: =YEAR(Table2[[#This Row],[Date of Joining]]) -> 2021 | P5: 4+ years
A6: Attrition | C6: CT16953 | D6: Sal Glass | E6: 2021-09-30 | F6: 2022-09-30 | G6: Ryan Simmons | H6: Contract | I6: Female | J6: 2021-04-11 | K6: Single | L6: Contract | M6: Marketing | N6: 0 | O6: =YEAR(Table2[[#This Row],[Date of Joining]]) -> 2021 | P6: 4+ years
A7: Attrition | C7: CT11213 | D7: Malik Schneider | E7: 2022-04-04 | F7: 2022-07-16 | G7: Darryl Leon | H7: Contract | I7: Male | J7: 2021-08-23 | K7: Single | L7: Contract | M7: Finance | N7: 2 | O7: =YEAR(Table2[[#This Row],[Date of Joining]]) -> 2022 | P7: 3+ years
A8: Attrition | C8: CT17933 | D8: Fanny Hampton | E8: 2022-06-03 | F8: 2023-01-25 | G8: Ryan Simmons | H8: Contract | I8: Male | J8: 2021-01-30 | K8: Single | L8: Contract | M8: Marketing | N8: 2.8 | O8: =YEAR(Table2[[#This Row],[Date of Joining]]) -> 2022 | P8: 3+ years
A9: Attrition | C9: CT17253 | D9: Edison York | E9: 2022-06-09 | F9: 2023-08-11 | G9: Ryan Simmons | H9: Contract | I9: Male | J9: 2021-10-28 | K9: Single | L9: Contract | M9: HR | N9: 0 | O9: =YEAR(Table2[[#This Row],[Date of Joining]]) -> 2022 | P9: 3+ years
A10: Attrition | C10: CT14693 | D10: Geraldo Pugh | E10: 2022-07-07 | F10: 2023-08-30 | G10: Geneva Hardy | H10: Contract | I10: Male | J10: 2021-12-26 | K10: Single | L10: Contract | M10: HR | N10: 3 | O10: =YEAR(Table2[[#This Row],[Date of Joining]]) -> 2022 | P10: 3+ years
A11: Attrition | C11: CT11465 | D11: Ellis Best | E11: 2022-08-04 | F11: 2023-05-13 | G11: Ryan Simmons | H11: Contract | I11: Male | J11: 2021-04-07 | K11: Single | L11: Contract | M11: Legal | N11: 5.9 | O11: =YEAR(Table2[[#This Row],[Date of Joining]]) -> 2022 | P11: 3+ years
A12: On-Board | C12: CT12948 | D12: Olen Walter | E12: 2022-09-01 | G12: Janelle Wiley | H12: Contract | I12: Male | J12: 2021-10-18 | K12: Married | L12: Contract | M12: Finance | N12: 10 | O12: =YEAR(Table2[[#This Row],[Date of Joining]]) -> 2022 | P12: 3+ years
A13: Attrition | C13: CT11145 | D13: Mckinley Baird | E13: 2022-09-08 | F13: 2023-12-30 | G13: Janelle Wiley | H13: Contract | I13: Female | J13: 2021-04-26 | K13: Single | L13: Contract | M13: Marketing | N13: 1 | O13: =YEAR(Table2[[#This Row],[Date of Joining]]) -> 2022 | P13: 3+ years
A14: On-Board | C14: CT18269 | D14: Maura Huynh | E14: 2022-11-08 | G14: Janelle Wiley | H14: Contract | I14: Male | J14: 2021-10-27 | K14: Married | L14: Contract | M14: Sales | N14: 10 | O14: =YEAR(Table2[[#This Row],[Date of Joining]]) -> 2022 | P14: 3+ years
A15: Attrition | C15: CT13931 | D15: Buster Joyce | E15: 2023-01-21 | F15: 2023-11-21 | G15: Alejandra Mack | H15: Contract | I15: Male | J15: 2021-09-06 | K15: Single | L15: Contract | M15: Marketing | N15: 0 | O15: =YEAR(Table2[[#This Row],[Date of Joining]]) -> 2023 | P15: 2+ years
A16: Attrition | C16: CT15252 | D16: Rosanna Bauer | E16: 2023-06-06 | F16: 2024-05-03 | G16: Alejandra Mack | H16: Contract | I16: Female | J16: 2022-02-28 | K16: Single | L16: Contract | M16: HR | N16: 0.1 | O16: =YEAR(Table2[[#This Row],[Date of Joining]]) -> 2023 | P16: 2+ years
A17: On-Board | C17: CT13664 | D17: Marion Harmon | E17: 2023-10-19 | G17: Alejandra Mack | H17: Contract | I17: Female | J17: 2022-09-26 | K17: Single | L17: Contract | M17: HR | N17: 0 | O17: =YEAR(Table2[[#This Row],[Date of Joining]]) -> 2023 | P17: 2+ years
A18: On-Board | C18: CT10043 | D18: Shawn Ross | E18: 2023-12-14 | G18: Alejandra Mack | H18: Contract | I18: Female | J18: 2022-11-12 | K18: Single | L18: Contract | M18: Legal | N18: 4 | O18: =YEAR(Table2[[#This Row],[Date of Joining]]) -> 2023 | P18: 2+ years
A19: On-Board | C19: CT16547 | D19: Houston Wilson | E19: 2024-02-06 | G19: Roberta Moyer | H19: Contract | I19: Male | J19: 2021-12-28 | K19: Single | L19: Contract | M19: HR | N19: 0 | O19: =YEAR(Table2[[#This Row],[Date of Joining]]) -> 2024 | P19: 1+ years
A20: On-Board | C20: CT11188 | D20: Maricela Gates | E20: 2024-03-27 | G20: Alejandra Mack | H20: Contract | I20: Male | J20: 2003-03-06 | K20: Married | L20: Contract | M20: Marketing | N20: 10 | O20: =YEAR(Table2[[#This Row],[Date of Joining]]) -> 2024 | P20: 1+ years
A21: On-Board | C21: CT14537 | D21: Fletcher Tate | E21: 2024-06-01 | G21: Alejandra Mack | H21: Contract | I21: Female | J21: 2022-12-03 | K21: Married | L21: Contract | M21: Legal | N21: 4 | O21: =YEAR(Table2[[#This Row],[Date of Joining]]) -> 2024 | P21: 1+ years
A22: On-Board | C22: CT14690 | D22: Emily Davis | E22: 2025-01-05 | G22: Jefferson Perry | H22: Contract | I22: Female | J22: 2021-05-22 | K22: Married | L22: Contract | M22: Finance | N22: 4.8 | O22: =YEAR(Table2[[#This Row],[Date of Joining]]) -> 2025 | P22: <1 year
A23: On-Board | C23: CT16195 | D23: Penelope Jordan | E23: 2025-01-14 | G23: Jefferson Perry | H23: Contract | I23: Male | J23: 2021-02-09 | K23: Single | L23: Contract | M23: Operations | N23: 9 | O23: =YEAR(Table2[[#This Row],[Date of Joining]]) -> 2025 | P23: <1 year
A24: On-Board | C24: CT16735 | D24: Alfredo Mcclain | E24: 2025-04-28 | G24: Ryan Simmons | H24: Contract | I24: Male | J24: 2021-12-06 | K24: Married | L24: Contract | M24: Marketing | N24: 8 | O24: =YEAR(Table2[[#This Row],[Date of Joining]]) -> 2025 | P24: <1 year
A25: On-Board | B25: IJP | C25: 107224 | D25: Preston Case | E25: 2020-02-06 | G25: Roberta Moyer | H25: Permanent | I25: Male | J25: 2021-08-25 | K25: Single | L25: Trainees | M25: Operations | N25: 13 | O25: =YEAR(Table2[[#This Row],[Date of Joining]]) -> 2020 | P25: 5+ years
A26: Attrition | B26: IJP | C26: 148467 | D26: Branden Kaiser | E26: 2020-02-08 | F26: 2024-06-30 | G26: Jefferson Perry | H26: Permanent | I26: Female | J26: 2021-10-25 | K26: Single | L26: Trainees | M26: Accounting | N26: 5 | O26: =YEAR(Table2[[#This Row],[Date of Joining]]) -> 2020 | P26: 5+ years
A27: Attrition | C27: 114416 | D27: Julia Bell | E27: 2020-02-13 | F27: 2024-01-09 | G27: Alejandra Mack | H27: Permanent | I27: Male | J27: 2021-11-24 | K27: Married | L27: Management | M27: Finance | N27: 8 | O27: =YEAR(Table2[[#This Row],[Date of Joining]]) -> 2020 | P27: 5+ years
A28: On-Board | C28: 189095 | D28: Sammy Hancock | E28: 2020-02-26 | G28: Alejandra Mack | H28: Permanent | I28: Male | J28: 2021-11-04 | K28: Single | L28: Management | M28: Operations | N28: 17 | O28: =YEAR(Table2[[#This Row],[Date of Joining]]) -> 2020 | P28: 5+ years
A29: Attrition | C29: 123874 | D29: Mabel Cuevas | E29: 2020-03-11 | F29: 2021-12-30 | G29: Alejandra Mack | H29: Permanent | I29: Male | J29: 2021-12-28 | K29: Married | L29: Trainees | M29: Accounting | N29: 14 | O29: =YEAR(Table2[[#This Row],[Date of Joining]]) -> 2020 | P29: 5+ years
A30: On-Board | B30: IJP | C30: 147637 | D30: Janelle Wiley | E30: 2020-03-26 | G30: Roberta Moyer | H30: Permanent | I30: Male | J30: 2021-04-28 | K30: Single | L30: Trainees | M30: Finance | N30: 14 | O30: =YEAR(Table2[[#This Row],[Date of Joining]]) -> 2020 | P30: 5+ years
A31: On-Board | B31: IJP | C31: 183900 | D31: Norris Madden | E31: 2020-04-29 | G31: Alejandra Mack | H31: Permanent | I31: Male | J31: 2021-04-23 | K31: Single | L31: Management | M31: Accounting | N31: 13 | O31: =YEAR(Table2[[#This Row],[Date of Joining]]) -> 2020 | P31: 5+ years
A32: On-Board | C32: 110700 | D32: Vincenzo Mcdowell | E32: 2020-05-20 | G32: Alejandra Mack | H32: Permanent | I32: Male | J32: 2021-04-21 | K32: Single | L32: Management | M32: Finance | N32: 13 | O32: =YEAR(Table2[[#This Row],[Date of Joining]]) -> 2020 | P32: 5+ years
A33: On-Board | B33: IJP | C33: 188035 | D33: Chris Mcbride | E33: 2020-06-12 | G33: Janelle Wiley | H33: Permanent | I33: Male | J33: 2022-08-08 | K33: Single | L33: Trainees | M33: Operations | N33: 7 | O33: =YEAR(Table2[[#This Row],[Date of Joining]]) -> 2020 | P33: 5+ years
A34: On-Board | C34: 131049 | D34: Wesley Berger | E34: 2020-06-18 | G34: Alejandra Mack | H34: Permanent | I34: Male | J34: 2021-12-31 | K34: Single | L34: Management | M34: Operations | N34: 13 | O34: =YEAR(Table2[[#This Row],[Date of Joining]]) -> 2020 | P34: 5+ years
A35: Attrition | C35: 180582 | D35: Bart Sims | E35: 2020-06-26 | F35: 2021-06-30 | G35: Janelle Wiley | H35: Permanent | I35: Female | J35: 2021-05-27 | K35: Single | L35: Professional | M35: Accounting | N35: 0 | O35: =YEAR(Table2[[#This Row],[Date of Joining]]) -> 2020 | P35: 5+ years
A36: On-Board | C36: 126718 | D36: Tricia Arroyo | E36: 2020-07-08 | G36: Alejandra Mack | H36: Permanent | I36: Male | J36: 2021-10-03 | K36: Single | L36: Trainees | M36: Accounting | N36: 6.5 | O36: =YEAR(Table2[[#This Row],[Date of Joining]]) -> 2020 | P36: 5+ years
A37: On-Board | C37: 192425 | D37: Kennith Barber | E37: 2020-07-24 | G37: Roberta Moyer | H37: Permanent | I37: Male | J37: 2021-05-22 | K37: Single | L37: Trainees | M37: Finance | N37: 8 | O37: =YEAR(Table2[[#This Row],[Date of Joining]]) -> 2020 | P37: 5+ years
A38: On-Board | C38: 174008 | D38: Alonzo Harrison | E38: 2020-07-31 | G38: Janelle Wiley | H38: Permanent | I38: Female | J38: 2021-12-10 | K38: Single | L38: Trainees | M38: Accounting | N38: 12 | O38: =YEAR(Table2[[#This Row],[Date of Joining]]) -> 2020 | P38: 5+ years
A39: Attrition | C39: 129735 | D39: Ryan Simmons | E39: 2020-08-14 | F39: 2022-06-29 | G39: Alejandra Mack | H39: Permanent | I39: Male | J39: 2021-01-15 | K39: Single | L39: Trainees | M39: Operations | N39: 5 | O39: =YEAR(Table2[[#This Row],[Date of Joining]]) -> 2020 | P39: 5+ years
A40: Attrition | C40: 117328 | D40: Kirk Wagner | E40: 2020-08-26 | F40: 2022-04-30 | G40: Alejandra Mack | H40: Permanent | I40: Male | J40: 2021-02-09 | K40: Married | L40: Trainees | M40: Operations | N40: 4.8 | O40: =YEAR(Table2[[#This Row],[Date of Joining]]) -> 2020 | P40: 5+ years
A41: On-Board | C41: 110646 | D41: Zackary Tucker | E41: 2020-09-01 | G41: Geneva Hardy | H41: Permanent | I41: Male | J41: 2021-01-20 | K41: Married | L41: Trainees | M41: Finance | N41: 9 | O41: =YEAR(Table2[[#This Row],[Date of Joining]]) -> 2020 | P41: 5+ years
A42: On-Board | C42: 114446 | D42: Roberto Ford | E42: 2020-09-01 | G42: Jefferson Perry | H42: Permanent | I42: Male | J42: 2021-11-24 | K42: Married | L42: Management | M42: Finance | N42: 8 | O42: =YEAR(Table2[[#This Row],[Date of Joining]]) -> 2020 | P42: 5+ years
A43: On-Board | C43: 189125 | D43: Sadie Mcmahon | E43: 2020-09-01 | G43: Ryan Simmons | H43: Permanent | I43: Male | J43: 2021-11-04 | K43: Married | L43: Management | M43: Operations | N43: 17 | O43: =YEAR(Table2[[#This Row],[Date of Joining]]) -> 2020 | P43: 5+ years
A44: On-Board | B44: IJP | C44: 183930 | D44: Darla Parks | E44: 2020-09-01 | G44: Ryan Simmons | H44: Permanent | I44: Male | J44: 2021-04-23 | K44: Married | L44: Management | M44: Accounting | N44: 13 | O44: =YEAR(Table2[[#This Row],[Date of Joining]]) -> 2020 | P44: 5+ years
A45: On-Board | C45: 110730 | D45: Darryl Leon | E45: 2020-09-01 | G45: Darryl Leon | H45: Permanent | I45: Male | J45: 2021-04-21 | K45: Single | L45: Management | M45: Finance | N45: 13 | O45: =YEAR(Table2[[#This Row],[Date of Joining]]) -> 2020 | P45: 5+ years
A46: On-Board | C46: 131079 | D46: Letitia Church | E46: 2020-09-01 | G46: Roberta Moyer | H46: Permanent | I46: Male | J46: 2021-12-31 | K46: Single | L46: Management | M46: Operations | N46: 13 | O46: =YEAR(Table2[[#This Row],[Date of Joining]]) -> 2020 | P46: 5+ years
A47: On-Board | C47: 180612 | D47: Collin Paul | E47: 2020-09-01 | G47: Janelle Wiley | H47: Permanent | I47: Female | J47: 2021-05-27 | K47: Single | L47: Professional | M47: Accounting | N47: 0 | O47: =YEAR(Table2[[#This Row],[Date of Joining]]) -> 2020 | P47: 5+ years
A48: Attrition | C48: 154702 | D48: Frances Leblanc | E48: 2020-09-09 | F48: 2024-01-20 | G48: Alejandra Mack | H48: Permanent | I48: Female | J48: 2021-11-07 | K48: Married | L48: Professional | M48: Operations | N48: 0 | O48: =YEAR(Table2[[#This Row],[Date of Joining]]) -> 2020 | P48: 5+ years
A49: On-Board | C49: 101286 | D49: Alexis Conway | E49: 2020-09-09 | G49: Alejandra Mack | H49: Permanent | I49: Male | J49: 2021-03-14 | K49: Single | L49: Management | M49: Legal | N49: 14 | O49: =YEAR(Table2[[#This Row],[Date of Joining]]) -> 2020 | P49: 5+ years
A50: Attrition | C50: 137383 | D50: Roberta Moyer | E50: 2020-09-16 | F50: 2021-03-03 | G50: Geneva Hardy | H50: Permanent | I50: Male | J50: 2021-01-24 | K50: Single | L50: Management | M50: Operations | N50: 9 | O50: =YEAR(Table2[[#This Row],[Date of Joining]]) -> 2020 | P50: 5+ years
A51: Attrition | C51: 185704 | D51: Alejandra Mack | E51: 2020-09-16 | F51: 2021-07-18 | G51: Janelle Wiley | H51: Permanent | I51: Male | J51: 2021-12-06 | K51: Single | L51: Professional | M51: HR | N51: 0 | O51: =YEAR(Table2[[#This Row],[Date of Joining]]) -> 2020 | P51: 5+ years
A52: Attrition | C52: 151727 | D52: Chi Preston | E52: 2020-09-16 | F52: 2023-06-29 | G52: Janelle Wiley | H52: Permanent | I52: Male | J52: 2021-02-03 | K52: Single | L52: Professional | M52: HR | N52: 0 | O52: =YEAR(Table2[[#This Row],[Date of Joining]]) -> 2020 | P52: 5+ years
A53: Attrition | C53: 135167 | D53: Randolph Reilly | E53: 2020-09-16 | F53: 2023-09-26 | G53: Janelle Wiley | H53: Permanent | I53: Male | J53: 2021-03-28 | K53: Single | L53: Professional | M53: HR | N53: 0 | O53: =YEAR(Table2[[#This Row],[Date of Joining]]) -> 2020 | P53: 5+ years
A54: Attrition | C54: 100971 | D54: Howard Wiggins | E54: 2020-09-16 | F54: 2023-12-23 | G54: Janelle Wiley | H54: Permanent | I54: Male | J54: 2021-09-08 | K54: Single | L54: Professional | M54: HR | N54: 0 | O54: =YEAR(Table2[[#This Row],[Date of Joining]]) -> 2020 | P54: 5+ years
A55: Attrition | C55: 145787 | D55: Palmer Hart | E55: 2020-09-16 | F55: 2024-01-27 | G55: Janelle Wiley | H55: Permanent | I55: Female | J55: 2021-10-14 | K55: Married | L55: Professional | M55: HR | N55: 0 | O55: =YEAR(Table2[[#This Row],[Date of Joining]]) -> 2020 | P55: 5+ years
A56: Attrition | C56: 170924 | D56: Lesa Terrell | E56: 2020-09-16 | F56: 2024-03-17 | G56: Jefferson Perry | H56: Permanent | I56: Male | J56: 2021-10-01 | K56: Single | L56: Professional | M56: HR | N56: 0 | O56: =YEAR(Table2[[#This Row],[Date of Joining]]) -> 2020 | P56: 5+ years
A57: Attrition | C57: 129573 | D57: Celeste Moses | E57: 2020-09-16 | F57: 2024-09-29 | G57: Ryan Simmons | H57: Permanent | I57: Female | J57: 2021-09-16 | K57: Single | L57: Trainees | M57: HR | N57: 0 | O57: =YEAR(Table2[[#This Row],[Date of Joining]]) -> 2020 | P57: 5+ years
A58: On-Board | C58: 115742 | D58: Leanne Mosley | E58: 2020-09-16 | G58: Ryan Simmons | H58: Permanent | I58: Female | J58: 2021-09-23 | K58: Single | L58: Trainees | M58: HR | N58: 0 | O58: =YEAR(Table2[[#This Row],[Date of Joining]]) -> 2020 | P58: 5+ years
A59: On-Board | C59: 126064 | D59: Renaldo Navarro | E59: 2020-09-16 | G59: Ryan Simmons | H59: Permanent | I59: Female | J59: 2021-05-30 | K59: Single | L59: Trainees | M59: HR | N59: 0 | O59: =YEAR(Table2[[#This Row],[Date of Joining]]) -> 2020 | P59: 5+ years
A60: On-Board | C60: 173140 | D60: Sonia Ortiz | E60: 2020-09-16 | G60: Jefferson Perry | H60: Permanent | I60: Male | J60: 2021-07-13 | K60: Single | L60: Trainees | M60: HR | N60: 0 | O60: =YEAR(Table2[[#This Row],[Date of Joining]]) -> 2020 | P60: 5+ years
A61: Attrition | C61: 181592 | D61: Faith Lopez | E61: 2020-10-16 | F61: 2024-02-03 | G61: Jefferson Perry | H61: Permanent | I61: Male | J61: 2021-01-24 | K61: Married | L61: Management | M61: HR | N61: 12 | O61: =YEAR(Table2[[#This Row],[Date of Joining]]) -> 2020 | P61: 5+ years
A62: Attrition | C62: 144158 | D62: Kim Ramirez | E62: 2020-11-28 | F62: 2023-03-31 | G62: Roberta Moyer | H62: Permanent | I62: Male | J62: 2021-04-10 | K62: Married | L62: Trainees | M62: Accounting | N62: 6 | O62: =YEAR(Table2[[#This Row],[Date of Joining]]) -> 2020 | P62: 5+ years
A63: On-Board | C63: 178955 | D63: Mariana Chavez | E63: 2020-12-02 | G63: Jefferson Perry | H63: Permanent | I63: Male | J63: 2021-03-18 | K63: Single | L63: Trainees | M63: Accounting | N63: 8 | O63: =YEAR(Table2[[#This Row],[Date of Joining]]) -> 2020 | P63: 5+ years
A64: Attrition | C64: 110616 | D64: Tracey Burch | E64: 2020-12-21 | F64: 2022-03-31 | G64: Roberta Moyer | H64: Permanent | I64: Male | J64: 2021-01-20 | K64: Married | L64: Trainees | M64: Finance | N64: 9 | O64: =YEAR(Table2[[#This Row],[Date of Joining]]) -> 2020 | P64: 5+ years
A65: Attrition | C65: 120981 | D65: Gabriela Juarez | E65: 2020-12-26 | F65: 2023-07-01 | G65: Roberta Moyer | H65: Permanent | I65: Female | J65: 2021-07-22 | K65: Single | L65: Professional | M65: Operations | N65: 0 | O65: =YEAR(Table2[[#This Row],[Date of Joining]]) -> 2020 | P65: 4+ years
A66: Attrition | C66: 140182 | D66: Katheryn Trevino | E66: 2021-01-22 | F66: 2022-03-15 | G66: Janelle Wiley | H66: Permanent | I66: Female | J66: 2021-02-08 | K66: Single | L66: Professional | M66: Operations | N66: 0 | O66: =YEAR(Table2[[#This Row],[Date of Joining]]) -> 2021 | P66: =IF(DATEDIF(E66,TODAY(),"Y")>=5,"5+ years", IF(DATEDIF(E66,TODAY(),"Y")>=4,"4+ years", IF(DATEDIF(E66,TODAY(),"Y")>=3,"3+ years", IF(DATEDIF(E66,TODAY(),"Y")>=2,"2+ years", IF(DATEDIF(E66,TODAY(),"Y")>=1,"1+ years","<1 year"))))) -> 4+ years
A67: Attrition | C67: 174057 | D67: Angelita Townsend | E67: 2021-01-22 | F67: 2023-02-08 | G67: Janelle Wiley | H67: Permanent | I67: Male | J67: 2021-11-11 | K67: Married | L67: Trainees | M67: Operations | N67: 6 | O67: =YEAR(Table2[[#This Row],[Date of Joining]]) -> 2021 | P67: 4+ years
A68: Attrition | C68: 124194 | D68: Damon Burgess | E68: 2021-01-29 | F68: 2022-03-10 | G68: Ryan Simmons | H68: Permanent | I68: Male | J68: 2021-01-25 | K68: Married | L68: Management | M68: Accounting | N68: 13 | O68: =YEAR(Table2[[#This Row],[Date of Joining]]) -> 2021 | P68: 4+ years
A69: Attrition | C69: 185420 | D69: Olen Watts | E69: 2021-02-19 | F69: 2023-09-30 | G69: Darryl Leon | H69: Permanent | I69: Male | J69: 2021-06-24 | K69: Married | L69: Trainees | M69: Legal | N69: 5 | O69: =YEAR(Table2[[#This Row],[Date of Joining]]) -> 2021 | P69: 4+ years
A70: Attrition | C70: 184945 | D70: Raymond Levine | E70: 2021-02-24 | F70: 2022-07-06 | G70: Ryan Simmons | H70: Permanent | I70: Male | J70: 2021-09-27 | K70: Married | L70: Trainees | M70: Accounting | N70: 10 | O70: =YEAR(Table2[[#This Row],[Date of Joining]]) -> 2021 | P70: 4+ years
A71: On-Board | C71: 129852 | D71: Sally Hinton | E71: 2021-03-02 | G71: Janelle Wiley | H71: Permanent | I71: Male | J71: 2021-01-04 | K71: Single | L71: Management | M71: Operations | N71: 10 | O71: =YEAR(Table2[[#This Row],[Date of Joining]]) -> 2021 | P71: 4+ years
A72: Attrition | C72: 139272 | D72: Katelyn Ware | E72: 2021-03-09 | F72: 2023-06-30 | G72: Roberta Moyer | H72: Permanent | I72: Female | J72: 2021-06-16 | K72: Married | L72: Trainees | M72: Operations | N72: 8 | O72: =YEAR(Table2[[#This Row],[Date of Joining]]) -> 2021 | P72: 4+ years
A73: On-Board | C73: 194976 | D73: Jessie Bowen | E73: 2021-03-16 | G73: Janelle Wiley | H73: Permanent | I73: Female | J73: 2021-01-04 | K73: Single | L73: Trainees | M73: Operations | N73: 3.5 | O73: =YEAR(Table2[[#This Row],[Date of Joining]]) -> 2021 | P73: 4+ years
A74: On-Board | C74: 132557 | D74: Mac Marquez | E74: 2021-05-27 | G74: Ryan Simmons | H74: Permanent | I74: Female | J74: 2021-08-21 | K74: Single | L74: Trainees | M74: Legal | N74: 7 | O74: =YEAR(Table2[[#This Row],[Date of Joining]]) -> 2021 | P74: 4+ years
A75: Attrition | B75: OnRoll | C75: 187280 | D75: Spencer Webb | E75: 2021-08-10 | F75: 2022-02-19 | G75: Janelle Wiley | H75: Permanent | I75: Female | J75: 2021-09-16 | K75: Single | L75: Professional | M75: Operations | N75: 0 | O75: =YEAR(Table2[[#This Row],[Date of Joining]]) -> 2021 | P75: 4+ years
A76: On-Board | B76: OnRoll | C76: 190396 | D76: Valentin Mcdonald | E76: 2021-08-10 | G76: Janelle Wiley | H76: Permanent | I76: Male | J76: 2021-11-13 | K76: Single | L76: Professional | M76: Operations | N76: 0 | O76: =YEAR(Table2[[#This Row],[Date of Joining]]) -> 2021 | P76: 4+ years
A77: Transfer | C77: 161242 | D77: Royce Schneider | E77: 2021-08-12 | G77: Geneva Hardy | H77: Permanent | I77: Male | J77: 2021-12-26 | K77: Married | L77: Trainees | M77: Operations | N77: 10 | O77: =YEAR(Table2[[#This Row],[Date of Joining]]) -> 2021 | P77: 4+ years
A78: Attrition | C78: 156965 | D78: Kara Mclean | E78: 2021-08-17 | F78: 2022-03-16 | G78: Janelle Wiley | H78: Permanent | I78: Female | J78: 2021-02-20 | K78: Married | L78: Trainees | M78: Operations | N78: 11 | O78: =YEAR(Table2[[#This Row],[Date of Joining]]) -> 2021 | P78: 4+ years
A79: Attrition | C79: 192455 | D79: Damian Mckee | E79: 2021-09-01 | F79: 2021-02-06 | G79: Roberta Moyer | H79: Permanent | I79: Male | J79: 2021-05-22 | K79: Married | L79: Trainees | M79: Finance | N79: 8 | O79: =YEAR(Table2[[#This Row],[Date of Joining]]) -> 2021 | P79: 4+ years
A80: Attrition | C80: 174038 | D80: Mohamed Duran | E80: 2021-09-01 | F80: 2021-03-27 | G80: Janelle Wiley | H80: Permanent | I80: Female | J80: 2021-12-10 | K80: Married | L80: Trainees | M80: Accounting | N80: 12 | O80: =YEAR(Table2[[#This Row],[Date of Joining]]) -> 2021 | P80: 4+ years
A81: On-Board | C81: 129765 | D81: Vera Harvey | E81: 2021-09-01 | G81: Roberta Moyer | H81: Permanent | I81: Male | J81: 2021-01-15 | K81: Single | L81: Trainees | M81: Operations | N81: 5 | O81: =YEAR(Table2[[#This Row],[Date of Joining]]) -> 2021 | P81: 4+ years
A82: On-Board | C82: 154732 | D82: Cristina David | E82: 2021-09-09 | G82: Alejandra Mack | H82: Permanent | I82: Female | J82: 2021-11-07 | K82: Single | L82: Professional | M82: Operations | N82: 0 | O82: =YEAR(Table2[[#This Row],[Date of Joining]]) -> 2021 | P82: 4+ years
A83: On-Board | C83: 137413 | D83: Florence Randall | E83: 2021-09-16 | G83: Alejandra Mack | H83: Permanent | I83: Male | J83: 2021-01-24 | K83: Single | L83: Management | M83: Operations | N83: 9 | O83: =YEAR(Table2[[#This Row],[Date of Joining]]) -> 2021 | P83: 4+ years
A84: On-Board | C84: 185734 | D84: Andrea Logan | E84: 2021-09-16 | G84: Janelle Wiley | H84: Permanent | I84: Male | J84: 2021-12-06 | K84: Single | L84: Professional | M84: HR | N84: 0 | O84: =YEAR(Table2[[#This Row],[Date of Joining]]) -> 2021 | P84: 4+ years
A85: On-Board | C85: 142749 | D85: Barrett Wallace | E85: 2021-09-30 | G85: Janelle Wiley | H85: Permanent | I85: Male | J85: 2021-07-04 | K85: Single | L85: Trainees | M85: Operations | N85: 17 | O85: =YEAR(Table2[[#This Row],[Date of Joining]]) -> 2021 | P85: 4+ years
A86: Attrition | C86: 116657 | D86: Claude Ramsey | E86: 2021-10-21 | F86: 2022-06-28 | G86: Janelle Wiley | H86: Permanent | I86: Male | J86: 2021-04-14 | K86: Single | L86: Trainees | M86: Operations | N86: 4.6 | O86: =YEAR(Table2[[#This Row],[Date of Joining]]) -> 2021 | P86: 4+ years
A87: On-Board | C87: 144530 | D87: Mason Wells | E87: 2021-11-18 | G87: Janelle Wiley | H87: Permanent | I87: Male | J87: 2021-03-20 | K87: Single | L87: Trainees | M87: Sales | N87: 14 | O87: =YEAR(Table2[[#This Row],[Date of Joining]]) -> 2021 | P87: 4+ years
A88: On-Board | C88: 101259 | D88: Whitney Vance | E88: 2022-02-24 | G88: Ryan Simmons | H88: Permanent | I88: Male | J88: 2021-11-27 | K88: Married | L88: Management | M88: Operations | N88: 12 | O88: =YEAR(Table2[[#This Row],[Date of Joining]]) -> 2022 | P88: 3+ years
A89: On-Board | C89: 122323 | D89: Bobbie Harvey | E89: 2022-03-03 | G89: Darryl Leon | H89: Permanent | I89: Female | J89: 2021-08-18 | K89: Married | L89: Trainees | M89: Sales | N89: 14 | O89: =YEAR(Table2[[#This Row],[Date of Joining]]) -> 2022 | P89: 3+ years
A90: On-Board | C90: 136489 | D90: Russel Fox | E90: 2022-03-17 | G90: Janelle Wiley | H90: Permanent | I90: Male | J90: 2021-02-03 | K90: Married | L90: Trainees | M90: Sales | N90: 5.3 | O90: =YEAR(Table2[[#This Row],[Date of Joining]]) -> 2022 | P90: 3+ years
A91: On-Board | C91: 107161 | D91: Benita Holland | E91: 2022-03-24 | G91: Roberta Moyer | H91: Permanent | I91: Female | J91: 2021-07-25 | K91: Single | L91: Professional | M91: Sales | N91: 2.5 | O91: =YEAR(Table2[[#This Row],[Date of Joining]]) -> 2022 | P91: 3+ years
A92: On-Board | C92: 182061 | D92: Cory Leblanc | E92: 2022-03-24 | G92: Janelle Wiley | H92: Permanent | I92: Male | J92: 2021-05-06 | K92: Single | L92: Trainees | M92: Sales | N92: 2.11 | O92: =YEAR(Table2[[#This Row],[Date of Joining]]) -> 2022 | P92: 3+ years
A93: On-Board | C93: 123190 | D93: Isaiah George | E93: 2022-04-07 | G93: Janelle Wiley | H93: Permanent | I93: Female | J93: 2021-01-18 | K93: Single | L93: Professional | M93: Sales | N93: 0 | O93: =YEAR(Table2[[#This Row],[Date of Joining]]) -> 2022 | P93: 3+ years
A94: On-Board | C94: 118638 | D94: Brad Nichols | E94: 2022-04-07 | G94: Janelle Wiley | H94: Permanent | I94: Male | J94: 2021-11-24 | K94: Married | L94: Trainees | M94: Sales | N94: 15 | O94: =YEAR(Table2[[#This Row],[Date of Joining]]) -> 2022 | P94: 3+ years
A95: On-Board | C95: 132330 | D95: Quentin Mcdonald | E95: 2022-04-14 | G95: Geneva Hardy | H95: Permanent | I95: Male | J95: 2021-10-14 | K95: Married | L95: Management | M95: HR | N95: 14 | O95: =YEAR(Table2[[#This Row],[Date of Joining]]) -> 2022 | P95: 3+ years
A96: On-Board | C96: 191594 | D96: Johnie Pruitt | E96: 2022-04-19 | G96: Darryl Leon | H96: Permanent | I96: Male | J96: 2021-09-07 | K96: Married | L96: Trainees | M96: Operations | N96: 8 | O96: =YEAR(Table2[[#This Row],[Date of Joining]]) -> 2022 | P96: 3+ years
A97: Transfer | C97: 152991 | D97: Walker Whitney | E97: 2022-05-05 | G97: Ryan Simmons | H97: Permanent | I97: Male | J97: 2021-02-18 | K97: Married | L97: Trainees | M97: Operations | N97: 15 | O97: =YEAR(Table2[[#This Row],[Date of Joining]]) -> 2022 | P97: 3+ years
A98: Attrition | B98: OnRoll | C98: 101996 | D98: Alexander Fowler | E98: 2022-06-30 | F98: 2023-07-01 | G98: Ryan Simmons | H98: Permanent | I98: Male | J98: 2021-08-06 | K98: Single | L98: Professional | M98: Sales | N98: 1 | O98: =YEAR(Table2[[#This Row],[Date of Joining]]) -> 2022 | P98: 3+ years
A99: Attrition | C99: 138939 | D99: Susanna Humphrey | E99: 2022-07-07 | F99: 2023-05-08 | G99: Ryan Simmons | H99: Permanent | I99: Female | J99: 2021-04-03 | K99: Married | L99: Trainees | M99: Operations | N99: 6 | O99: =YEAR(Table2[[#This Row],[Date of Joining]]) -> 2022 | P99: 3+ years
A100: Attrition | C100: 198396 | D100: Beth Lowe | E100: 2022-07-21 | F100: 2024-02-02 | G100: Ryan Simmons | H100: Permanent | I100: Male | J100: 2021-01-12 | K100: Married | L100: Management | M100: Accounting | N100: 18 | O100: =YEAR(Table2[[#This Row],[Date of Joining]]) -> 2022 | P100: 3+ years
A101: On-Board | C101: 194143 | D101: Casandra Aguilar | E101: 2022-07-21 | G101: Janelle Wiley | H101: Permanent | I101: Male | J101: 2021-02-21 | K101: Married | L101: Trainees | M101: Sales | N101: 6.5 | O101: =YEAR(Table2[[#This Row],[Date of Joining]]) -> 2022 | P101: 3+ years
A102: Transfer | C102: 134729 | D102: Lynn Andersen | E102: 2022-07-26 | G102: Ryan Simmons | H102: Permanent | I102: Male | J102: 2021-01-10 | K102: Single | L102: Trainees | M102: Operations | N102: 7 | O102: =YEAR(Table2[[#This Row],[Date of Joining]]) -> 2022 | P102: 3+ years
A103: Attrition | C103: 186526 | D103: Leola Vega | E103: 2022-09-01 | F103: 2023-12-09 | G103: Janelle Wiley | H103: Permanent | I103: Female | J103: 2021-12-10 | K103: Married | L103: Professional | M103: Sales | N103: 1.8 | O103: =YEAR(Table2[[#This Row],[Date of Joining]]) -> 2022 | P103: 3+ years
A104: On-Board | C104: 115395 | D104: Hillary Spencer | E104: 2022-09-01 | G104: Janelle Wiley | H104: Permanent | I104: Female | J104: 2021-10-26 | K104: Single | L104: Professional | M104: Sales | N104: 3.5 | O104: =YEAR(Table2[[#This Row],[Date of Joining]]) -> 2022 | P104: 3+ years
A105: On-Board | C105: 160948 | D105: Joesph Jones | E105: 2022-09-01 | G105: Janelle Wiley | H105: Permanent | I105: Female | J105: 2021-10-03 | K105: Single | L105: Professional | M105: Sales | N105: 0 | O105: =YEAR(Table2[[#This Row],[Date of Joining]]) -> 2022 | P105: 3+ years
A106: On-Board | C106: 163814 | D106: Otha May | E106: 2022-09-01 | G106: Roberta Moyer | H106: Permanent | I106: Male | J106: 2021-01-12 | K106: Single | L106: Professional | M106: Sales | N106: 2 | O106: =YEAR(Table2[[#This Row],[Date of Joining]]) -> 2022 | P106: 3+ years
A107: On-Board | C107: 163161 | D107: Ophelia Black | E107: 2022-09-01 | G107: Janelle Wiley | H107: Permanent | I107: Male | J107: 2021-01-19 | K107: Married | L107: Trainees | M107: Sales | N107: 13 | O107: =YEAR(Table2[[#This Row],[Date of Joining]]) -> 2022 | P107: 3+ years
A108: On-Board | C108: 173240 | D108: Helena Williamson | E108: 2022-09-15 | G108: Roberta Moyer | H108: Permanent | I108: Female | J108: 2021-02-02 | K108: Married | L108: Trainees | M108: Sales | N108: 8.2 | O108: =YEAR(Table2[[#This Row],[Date of Joining]]) -> 2022 | P108: 3+ years
A109: On-Board | C109: 109673 | D109: Megan Kent | E109: 2022-10-06 | G109: Janelle Wiley | H109: Permanent | I109: Male | J109: 2021-05-10 | K109: Single | L109: Professional | M109: Sales | N109: 7.6 | O109: =YEAR(Table2[[#This Row],[Date of Joining]]) -> 2022 | P109: 3+ years
A110: On-Board | C110: 138302 | D110: Rufus Escobar | E110: 2022-10-13 | G110: Janelle Wiley | H110: Permanent | I110: Male | J110: 2021-08-25 | K110: Single | L110: Professional | M110: Sales | N110: 6.2 | O110: =YEAR(Table2[[#This Row],[Date of Joining]]) -> 2022 | P110: 3+ years
A111: Transfer | C111: 126765 | D111: Ericka Hurst | E111: 2022-11-03 | G111: Ryan Simmons | H111: Permanent | I111: Male | J111: 2021-01-21 | K111: Married | L111: Trainees | M111: Operations | N111: 15 | O111: =YEAR(Table2[[#This Row],[Date of Joining]]) -> 2022 | P111: 3+ years
A112: Transfer | C112: 188099 | D112: Johnny Cisneros | E112: 2022-12-06 | G112: Ryan Simmons | H112: Permanent | I112: Male | J112: 2021-05-16 | K112: Married | L112: Trainees | M112: Operations | N112: 16 | O112: =YEAR(Table2[[#This Row],[Date of Joining]]) -> 2022 | P112: 3+ years
A113: On-Board | B113: OnRoll | C113: 115441 | D113: Alba Norton | E113: 2023-02-01 | G113: Ryan Simmons | H113: Permanent | I113: Male | J113: 2021-06-30 | K113: Single | L113: Professional | M113: Finance | N113: 1.5 | O113: =YEAR(Table2[[#This Row],[Date of Joining]]) -> 2023 | P113: 2+ years
A114: On-Board | B114: OnRoll | C114: 169669 | D114: Sanford Patterson | E114: 2023-04-11 | G114: Ryan Simmons | H114: Permanent | I114: Female | J114: 2022-03-19 | K114: Married | L114: Trainees | M114: Legal | N114: 6 | O114: =YEAR(Table2[[#This Row],[Date of Joining]]) -> 2023 | P114: 2+ years
A115: On-Board | C115: 100957 | D115: Blanche Greer | E115: 2023-04-20 | G115: Ryan Simmons | H115: Permanent | I115: Female | J115: 2022-03-12 | K115: Married | L115: Trainees | M115: Operations | N115: 8 | O115: =YEAR(Table2[[#This Row],[Date of Joining]]) -> 2023 | P115: 2+ years
A116: Transfer | C116: 193737 | D116: Nita Powers | E116: 2023-05-11 | G116: Ryan Simmons | H116: Permanent | I116: Male | J116: 2022-10-13 | K116: Married | L116: Trainees | M116: Operations | N116: 11.5 | O116: =YEAR(Table2[[#This Row],[Date of Joining]]) -> 2023 | P116: 2+ years
A117: On-Board | C117: 180698 | D117: Francesco Blanchard | E117: 2023-05-18 | G117: Ryan Simmons | H117: Permanent | I117: Male | J117: 2022-03-09 | K117: Single | L117: Trainees | M117: Operations | N117: 3.5 | O117: =YEAR(Table2[[#This Row],[Date of Joining]]) -> 2023 | P117: 2+ years
A118: Attrition | C118: 124433 | D118: Elias Davis | E118: 2023-06-01 | F118: 2023-07-11 | G118: Janelle Wiley | H118: Permanent | I118: Female | J118: 2022-11-02 | K118: Single | L118: Professional | M118: HR | N118: 0 | O118: =YEAR(Table2[[#This Row],[Date of Joining]]) -> 2023 | P118: 2+ years
A119: On-Board | B119: OnRoll | C119: 151636 | D119: Lucio Christian | E119: 2023-06-06 | G119: Ryan Simmons | H119: Permanent | I119: Male | J119: 2021-02-28 | K119: Single | L119: Professional | M119: HR | N119: 1.8 | O119: =YEAR(Table2[[#This Row],[Date of Joining]]) -> 2023 | P119: 2+ years
A120: On-Board | B120: OnRoll | C120: 173529 | D120: Greg Schaefer | E120: 2023-06-06 | G120: Ryan Simmons | H120: Permanent | I120: Female | J120: 2021-01-08 | K120: Single | L120: Professional | M120: HR | N120: 1.5 | O120: =YEAR(Table2[[#This Row],[Date of Joining]]) -> 2023 | P120: 2+ years
A121: On-Board | B121: OnRoll | C121: 116633 | D121: Adriana Little | E121: 2023-06-06 | G121: Ryan Simmons | H121: Permanent | I121: Female | J121: 2021-01-22 | K121: Single | L121: Professional | M121: HR | N121: 0.11 | O121: =YEAR(Table2[[#This Row],[Date of Joining]]) -> 2023 | P121: 2+ years
A122: On-Board | B122: OnRoll | C122: 160990 | D122: Abdul Khan | E122: 2023-06-06 | G122: Ryan Simmons | H122: Permanent | I122: Male | J122: 2022-08-31 | K122: Single | L122: Professional | M122: HR | N122: 0 | O122: =YEAR(Table2[[#This Row],[Date of Joining]]) -> 2023 | P122: 2+ years
A123: Attrition | C123: 170513 | D123: Marissa Mckee | E123: 2023-06-08 | F123: 2024-03-31 | G123: Ryan Simmons | H123: Permanent | I123: Female | J123: 2022-05-31 | K123: Single | L123: Trainees | M123: Operations | N123: 7 | O123: =YEAR(Table2[[#This Row],[Date of Joining]]) -> 2023 | P123: 2+ years
A124: On-Board | C124: 167822 | D124: Ashlee Ortega | E124: 2023-06-29 | G124: Ryan Simmons | H124: Permanent | I124: Male | J124: 2022-07-31 | K124: Married | L124: Professional | M124: HR | N124: 7 | O124: =YEAR(Table2[[#This Row],[Date of Joining]]) -> 2023 | P124: 2+ years
A125: On-Board | C125: 161037 | D125: Edmund Lawson | E125: 2023-07-04 | G125: Ryan Simmons | H125: Permanent | I125: Female | J125: 2022-03-09 | K125: Single | L125: Professional | M125: Operations | N125: 5 | O125: =YEAR(Table2[[#This Row],[Date of Joining]]) -> 2023 | P125: 2+ years
A126: On-Board | C126: 153255 | D126: Linda Jacobs | E126: 2023-07-13 | G126: Ryan Simmons | H126: Permanent | I126: Female | J126: 2022-01-29 | K126: Single | L126: Professional | M126: Legal | N126: 3.8 | O126: =YEAR(Table2[[#This Row],[Date of Joining]]) -> 2023 | P126: 2+ years
A127: On-Board | C127: 123179 | D127: Kelley Harding | E127: 2023-07-18 | G127: Ryan Simmons | H127: Permanent | I127: Female | J127: 2022-02-20 | K127: Single | L127: Trainees | M127: HR | N127: 6.5 | O127: =YEAR(Table2[[#This Row],[Date of Joining]]) -> 2023 | P127: 2+ years
A128: On-Board | C128: 189554 | D128: Rose Carney | E128: 2023-07-27 | G128: Ryan Simmons | H128: Permanent | I128: Female | J128: 2022-07-24 | K128: Married | L128: Trainees | M128: HR | N128: 8 | O128: =YEAR(Table2[[#This Row],[Date of Joining]]) -> 2023 | P128: 2+ years
A129: On-Board | C129: 186786 | D129: Emery Goodwin | E129: 2023-08-01 | G129: Roberta Moyer | H129: Permanent | I129: Female | J129: 2022-09-15 | K129: Single | L129: Professional | M129: Sales | N129: 1.5 | O129: =YEAR(Table2[[#This Row],[Date of Joining]]) -> 2023 | P129: 2+ years
A130: On-Board | C130: 186818 | D130: Derick Singh | E130: 2023-08-03 | G130: Roberta Moyer | H130: Permanent | I130: Male | J130: 2022-05-15 | K130: Single | L130: Trainees | M130: Sales | N130: 7 | O130: =YEAR(Table2[[#This Row],[Date of Joining]]) -> 2023 | P130: =IF(DATEDIF(E130,TODAY(),"Y")>=5,"5+ years", IF(DATEDIF(E130,TODAY(),"Y")>=4,"4+ years", IF(DATEDIF(E130,TODAY(),"Y")>=3,"3+ years", IF(DATEDIF(E130,TODAY(),"Y")>=2,"2+ years", IF(DATEDIF(E130,TODAY(),"Y")>=1,"1+ years","<1 year"))))) -> 2+ years
A131: On-Board | C131: 147963 | D131: Hassan Wilcox | E131: 2023-08-16 | G131: Ryan Simmons | H131: Permanent | I131: Female | J131: 2022-02-28 | K131: Married | L131: Trainees | M131: Operations | N131: 15 | O131: =YEAR(Table2[[#This Row],[Date of Joining]]) -> 2023 | P131: 2+ years
A132: On-Board | C132: 150614 | D132: Natalie Serrano | E132: 2023-09-12 | G132: Ryan Simmons | H132: Permanent | I132: Male | J132: 2022-09-26 | K132: Married | L132: Trainees | M132: Finance | N132: 10.7 | O132: =YEAR(Table2[[#This Row],[Date of Joining]]) -> 2023 | P132: 2+ years
A133: On-Board | C133: 137151 | D133: Sandy Singleton | E133: 2023-09-26 | G133: Janelle Wiley | H133: Permanent | I133: Female | J133: 2022-12-22 | K133: Single | L133: Professional | M133: Sales | N133: 2 | O133: =YEAR(Table2[[#This Row],[Date of Joining]]) -> 2023 | P133: 2+ years
A134: On-Board | B134: OnRoll | C134: 173998 | D134: Josiah Hart | E134: 2023-10-28 | G134: Ryan Simmons | H134: Permanent | I134: Male | J134: 2021-03-16 | K134: Single | L134: Trainees | M134: Accounting | N134: 5.3 | O134: =YEAR(Table2[[#This Row],[Date of Joining]]) -> 2023 | P134: 2+ years
A135: On-Board | B135: OnRoll | C135: 103925 | D135: Wayne Hartman | E135: 2023-11-30 | G135: Ryan Simmons | H135: Permanent | I135: Male | J135: 2021-05-12 | K135: Married | L135: Professional | M135: Marketing | N135: 4.5 | O135: =YEAR(Table2[[#This Row],[Date of Joining]]) -> 2023 | P135: 2+ years
A136: On-Board | C136: 118694 | D136: Sallie Carpenter | E136: 2023-12-05 | G136: Ryan Simmons | H136: Permanent | I136: Male | J136: 2022-01-20 | K136: Single | L136: Professional | M136: Marketing | N136: 3.5 | O136: =YEAR(Table2[[#This Row],[Date of Joining]]) -> 2023 | P136: 2+ years
A137: On-Board | C137: 195849 | D137: Allen Walters | E137: 2023-12-05 | G137: Ryan Simmons | H137: Permanent | I137: Female | J137: 2022-08-13 | K137: Single | L137: Professional | M137: Marketing | N137: 1.5 | O137: =YEAR(Table2[[#This Row],[Date of Joining]]) -> 2023 | P137: 2+ years
A138: On-Board | C138: 182665 | D138: Flora Bass | E138: 2023-12-07 | G138: Ryan Simmons | H138: Permanent | I138: Female | J138: 2022-03-02 | K138: Married | L138: Trainees | M138: Legal | N138: 10.9 | O138: =YEAR(Table2[[#This Row],[Date of Joining]]) -> 2023 | P138: 2+ years
A139: On-Board | C139: 151067 | D139: Geneva Hardy | E139: 2023-12-12 | G139: Darryl Leon | H139: Permanent | I139: Female | J139: 2022-07-22 | K139: Married | L139: Professional | M139: HR | N139: 2.8 | O139: =YEAR(Table2[[#This Row],[Date of Joining]]) -> 2023 | P139: 2+ years
A140: On-Board | B140: OnRoll | C140: 188212 | D140: Roberto Harper | E140: 2023-12-14 | G140: Ryan Simmons | H140: Permanent | I140: Male | J140: 2021-12-12 | K140: Married | L140: Trainees | M140: Legal | N140: 7.5 | O140: =YEAR(Table2[[#This Row],[Date of Joining]]) -> 2023 | P140: 2+ years
A141: On-Board | B141: OnRoll | C141: 188527 | D141: Isabella Miles | E141: 2023-12-14 | G141: Ryan Simmons | H141: Permanent | I141: Female | J141: 2022-05-20 | K141: Single | L141: Professional | M141: Marketing | N141: 10 | O141: =YEAR(Table2[[#This Row],[Date of Joining]]) -> 2023 | P141: 2+ years
A142: On-Board | C142: 151539 | D142: Consuelo Beck | E142: 2023-12-19 | G142: Ryan Simmons | H142: Permanent | I142: Female | J142: 2022-02-21 | K142: Single | L142: Professional | M142: Marketing | N142: 0 | O142: =YEAR(Table2[[#This Row],[Date of Joining]]) -> 2023 | P142: 2+ years
A143: On-Board | C143: 148895 | D143: Barney Velasquez | E143: 2023-12-28 | G143: Darryl Leon | H143: Permanent | I143: Female | J143: 2022-04-17 | K143: Single | L143: Professional | M143: HR | N143: 0 | O143: =YEAR(Table2[[#This Row],[Date of Joining]]) -> 2023 | P143: 1+ years
A144: On-Board | B144: OnRoll | C144: 114477 | D144: Jamaal Delgado | E144: 2024-01-04 | G144: Ryan Simmons | H144: Permanent | I144: Male | J144: 2021-07-09 | K144: Single | L144: Professional | M144: Marketing | N144: 1.6 | O144: =YEAR(Table2[[#This Row],[Date of Joining]]) -> 2024 | P144: 1+ years
A145: On-Board | C145: 170085 | D145: Glenda Ayers | E145: 2024-01-11 | G145: Ryan Simmons | H145: Permanent | I145: Male | J145: 2023-08-06 | K145: Single | L145: Professional | M145: Marketing | N145: 3.5 | O145: =YEAR(Table2[[#This Row],[Date of Joining]]) -> 2024 | P145: 1+ years
A146: On-Board | C146: 148355 | D146: Vonda Chandler | E146: 2024-01-11 | G146: Roberta Moyer | H146: Permanent | I146: Male | J146: 2021-08-25 | K146: Single | L146: Professional | M146: HR | N146: 14 | O146: =YEAR(Table2[[#This Row],[Date of Joining]]) -> 2024 | P146: 1+ years
A147: On-Board | C147: 132724 | D147: Elma Perkins | E147: 2024-01-23 | G147: Geneva Hardy | H147: Permanent | I147: Male | J147: 2023-04-05 | K147: Single | L147: Professional | M147: Marketing | N147: 0.6 | O147: =YEAR(Table2[[#This Row],[Date of Joining]]) -> 2024 | P147: 1+ years
A148: On-Board | C148: 136024 | D148: Irving Good | E148: 2024-01-23 | G148: Janelle Wiley | H148: Permanent | I148: Male | J148: 2021-11-24 | K148: Single | L148: Management | M148: HR | N148: 14 | O148: =YEAR(Table2[[#This Row],[Date of Joining]]) -> 2024 | P148: 1+ years
A149: On-Board | B149: OnRoll | C149: 186654 | D149: Carlo Stephens | E149: 2024-02-01 | G149: Ryan Simmons | H149: Permanent | I149: Female | J149: 2022-05-27 | K149: Single | L149: Professional | M149: HR | N149: 3.3 | O149: =YEAR(Table2[[#This Row],[Date of Joining]]) -> 2024 | P149: 1+ years
A150: On-Board | C150: 140505 | D150: Fermin Maddox | E150: 2024-02-01 | G150: Roberta Moyer | H150: Permanent | I150: Female | J150: 2021-11-04 | K150: Single | L150: Professional | M150: HR | N150: 13 | O150: =YEAR(Table2[[#This Row],[Date of Joining]]) -> 2024 | P150: 1+ years
A151: On-Board | C151: 166500 | D151: Wendell Bonilla | E151: 2024-02-06 | G151: Ryan Simmons | H151: Permanent | I151: Female | J151: 2022-12-11 | K151: Single | L151: Professional | M151: Legal | N151: 1.5 | O151: =YEAR(Table2[[#This Row],[Date of Joining]]) -> 2024 | P151: 1+ years
A152: On-Board | B152: OnRoll | C152: 196256 | D152: Hank Copeland | E152: 2024-03-15 | G152: Ryan Simmons | H152: Permanent | I152: Female | J152: 2021-05-03 | K152: Married | L152: Professional | M152: HR | N152: 3 | O152: =YEAR(Table2[[#This Row],[Date of Joining]]) -> 2024 | P152: 1+ years
A153: On-Board | C153: 107622 | D153: Luciano Arnold | E153: 2024-03-15 | G153: Janelle Wiley | H153: Permanent | I153: Female | J153: 2021-04-28 | K153: Single | L153: Trainees | M153: HR | N153: 13 | O153: =YEAR(Table2[[#This Row],[Date of Joining]]) -> 2024 | P153: 1+ years
A154: On-Board | C154: 140845 | D154: Aimee Freeman | E154: 2024-03-23 | G154: Darryl Leon | H154: Permanent | I154: Male | J154: 2023-06-04 | K154: Single | L154: Trainees | M154: HR | N154: 10 | O154: =YEAR(Table2[[#This Row],[Date of Joining]]) -> 2024 | P154: 1+ years
A155: On-Board | C155: 196163 | D155: Jarrett Henson | E155: 2024-03-23 | G155: Geneva Hardy | H155: Permanent | I155: Male | J155: 2022-12-16 | K155: Single | L155: Professional | M155: HR | N155: 6.8 | O155: =YEAR(Table2[[#This Row],[Date of Joining]]) -> 2024 | P155: 1+ years
A156: On-Board | C156: 143527 | D156: Garland Barber | E156: 2024-03-23 | G156: Roberta Moyer | H156: Permanent | I156: Male | J156: 2021-02-14 | K156: Married | L156: Management | M156: Marketing | N156: 7 | O156: =YEAR(Table2[[#This Row],[Date of Joining]]) -> 2024 | P156: 1+ years
A157: On-Board | C157: 121781 | D157: Filiberto Baird | E157: 2024-03-23 | G157: Roberta Moyer | H157: Permanent | I157: Male | J157: 2021-03-11 | K157: Single | L157: Management | M157: Marketing | N157: 13 | O157: =YEAR(Table2[[#This Row],[Date of Joining]]) -> 2024 | P157: 1+ years
A158: On-Board | B158: OnRoll | C158: 190716 | D158: Reed Pena | E158: 2024-04-03 | G158: Darryl Leon | H158: Permanent | I158: Female | J158: 2021-06-15 | K158: Married | L158: Professional | M158: Marketing | N158: 4 | O158: =YEAR(Table2[[#This Row],[Date of Joining]]) -> 2024 | P158: 1+ years
A159: On-Board | C159: 131453 | D159: Cecile Garner | E159: 2024-04-03 | G159: Janelle Wiley | H159: Permanent | I159: Male | J159: 2023-01-14 | K159: Single | L159: Professional | M159: Operations | N159: 8 | O159: =YEAR(Table2[[#This Row],[Date of Joining]]) -> 2024 | P159: 1+ years
A160: On-Board | C160: 133611 | D160: Art Kim | E160: 2024-04-19 | G160: Janelle Wiley | H160: Permanent | I160: Female | J160: 1999-05-20 | K160: Single | L160: Professional | M160: Sales | N160: 0 | O160: =YEAR(Table2[[#This Row],[Date of Joining]]) -> 2024 | P160: 1+ years
A161: On-Board | C161: 158773 | D161: Grover Kramer | E161: 2024-05-15 | G161: Darryl Leon | H161: Permanent | I161: Male | J161: 2023-05-27 | K161: Single | L161: Professional | M161: Marketing | N161: 3 | O161: =YEAR(Table2[[#This Row],[Date of Joining]]) -> 2024 | P161: 1+ years
A162: On-Board | C162: 109333 | D162: Milan Pope | E162: 2024-05-22 | G162: Ryan Simmons | H162: Permanent | I162: Male | J162: 2023-08-04 | K162: Married | L162: Trainees | M162: Legal | N162: 10 | O162: =YEAR(Table2[[#This Row],[Date of Joining]]) -> 2024 | P162: 1+ years
A163: On-Board | C163: 165233 | D163: Randal Mata | E163: 2024-06-12 | G163: Ryan Simmons | H163: Permanent | I163: Male | J163: 2023-04-06 | K163: Single | L163: Professional | M163: Marketing | N163: 1.2 | O163: =YEAR(Table2[[#This Row],[Date of Joining]]) -> 2024 | P163: 1+ years
A164: On-Board | B164: OnRoll | C164: 103360 | D164: Pete Arroyo | E164: 2024-10-04 | G164: Ryan Simmons | H164: Permanent | I164: Female | J164: 2001-04-01 | K164: Single | L164: Professional | M164: HR | N164: 0.11 | O164: =YEAR(Table2[[#This Row],[Date of Joining]]) -> 2024 | P164: 1+ years
A165: On-Board | C165: 168841 | D165: Jefferson Perry | E165: 2024-10-04 | G165: Ryan Simmons | H165: Permanent | I165: Male | J165: 1982-01-03 | K165: Married | L165: Management | M165: Sales | N165: 19 | O165: =YEAR(Table2[[#This Row],[Date of Joining]]) -> 2024 | P165: 1+ years
A166: Attrition | C166: 123680 | D166: Luna Sanders | E166: 2025-01-01 | G166: Jefferson Perry | H166: Permanent | I166: Female | J166: 2021-01-15 | K166: Single | L166: Professional | M166: Operations | N166: 0 | O166: =YEAR(Table2[[#This Row],[Date of Joining]]) -> 2025 | P166: <1 year
A167: On-Board | C167: 136555 | D167: Santos Mooney | E167: 2025-01-05 | G167: Jefferson Perry | H167: Permanent | I167: Male | J167: 2021-10-03 | K167: Married | L167: Management | M167: Accounting | N167: 5 | O167: =YEAR(Table2[[#This Row],[Date of Joining]]) -> 2025 | P167: <1 year
A168: On-Board | C168: 109886 | D168: Theodore Dinh | E168: 2025-01-07 | G168: Jefferson Perry | H168: Permanent | I168: Female | J168: 2021-12-10 | K168: Married | L168: Management | M168: Operations | N168: 14 | O168: =YEAR(Table2[[#This Row],[Date of Joining]]) -> 2025 | P168: <1 year
A169: On-Board | C169: 135596 | D169: Austin Vo | E169: 2025-01-14 | G169: Darryl Leon | H169: Permanent | I169: Male | J169: 2021-03-14 | K169: Single | L169: Trainees | M169: Operations | N169: 0 | O169: =YEAR(Table2[[#This Row],[Date of Joining]]) -> 2025 | P169: <1 year
A170: On-Board | C170: 102045 | D170: Jermaine Benitez | E170: 2025-03-04 | G170: Ryan Simmons | H170: Permanent | I170: Female | J170: 2021-01-20 | K170: Single | L170: Management | M170: Accounting | N170: 17 | O170: =YEAR(Table2[[#This Row],[Date of Joining]]) -> 2025 | P170: <1 year
A171: On-Board | C171: 137966 | D171: Joshua Gupta | E171: 2025-07-14 | G171: Ryan Simmons | H171: Permanent | I171: Male | J171: 2021-11-07 | K171: Married | L171: Trainees | M171: Operations | N171: 9 | O171: =YEAR(Table2[[#This Row],[Date of Joining]]) -> 2025 | P171: <1 year
A172: On-Board | C172: 146341 | D172: Dave Armstrong | E172: 2025-07-19 | G172: Ryan Simmons | H172: Permanent | I172: Female | J172: 2021-01-24 | K172: Married | L172: Trainees | M172: Operations | N172: 13 | O172: =YEAR(Table2[[#This Row],[Date of Joining]]) -> 2025 | P172: <1 year
